Cogmind - Beta 14 @@@ ROGUE MODE // 2024.08.07 @ 21:08:07 Player: Sionnis Result: Destroyed by 9G-TN9(R) with Subdweller Laser Performance ------------- Evolutions (0) 0 Regions Visited (2) 400 Robots Destroyed (32) 160 Value Destroyed (838) 838 Prototype IDs (2) 40 Alien Tech Used (0) 0 Bonus (0) 0 TOTAL SCORE: 1438 Bonus ------- None Cogmind --------- Core Integrity 0/250 Matter 300/300 Energy 78/100 System Corruption 5% Temperature Cool (6) Movement Core (400) Ox7 Location -10/Subcaves Parts ------- > --- POWER (1) -------- (None) > --- PROPULSION (2) --- (None) > --- UTILITY (2) ------ Large Storage Unit Core Shielding > --- WEAPON (2) ------- Beam Cannon > --- INVENTORY (15) --- Compact Wheel Subdweller Monowheel Flight Unit Flight Unit Flight Unit Medium Storage Unit Sensor Array Signal Interpreter Hacking Suite Beam Cannon Subdweller Machine Gun Light Cannon Subdweller Shrapnel Launcher Datajack Peak State ------------ > --- POWER ------------ Subdweller Power Source > --- PROPULSION ------- Light Treads Light Treads > --- UTILITY ---------- Large Storage Unit Core Shielding > --- WEAPON ----------- Beam Cannon Subdweller Machine Gun > --- INVENTORY -------- Compact Wheel Subdweller Monowheel Flight Unit Flight Unit Flight Unit Medium Storage Unit Sensor Array Signal Interpreter Hacking Suite Beam Cannon Beam Cannon Subdweller Machine Gun Light Cannon Subdweller Shrapnel Launcher Datajack [Rating: 11] Favorites ----------- Power Ion Engine Engine Ion Engine Propulsion Light Treads Treads Light Treads Utility Core Shielding Device Improved Heat Sink Storage Large Storage Unit Protection Core Shielding Weapon Beam Cannon Energy Gun Medium Laser Energy Cannon Beam Cannon Ballistic Gun Assault Rifle Ballistic Cannon Light Cannon Launcher Rocket Launcher Build | -11 -10 -10 ------- Run | Yrd Mat Sub Slots Evolved . | . . . Power . | . . . Propulsion . | . . . Utility . | . . . Weapon . | . . . Parts Attached 23 | 6 12 5 Power 4 | 1 2 1 Engine 4 | 1 2 1 Core . | . . . Reactor . | . . . Propulsion 5 | 2 2 1 Treads 5 | 2 2 1 Leg . | . . . Wheel . | . . . Hover . | . . . Flight . | . . . Utility 4 | 1 3 . Device 1 | . 1 . Storage 2 | 1 1 . Processor . | . . . Hackware . | . . . Protection 1 | . 1 . Artifact . | . . . Weapon 10 | 2 5 3 Energy Gun 2 | 1 1 . Energy Cannon 3 | . 2 1 Ballistic Gun 2 | 1 . 1 Ballistic Cannon 2 | . 1 1 Launcher 1 | . 1 . Special Weapon . | . . . Impact Weapon . | . . . Slashing Weapon . | . . . Piercing Weapon . | . . . Special Melee Weapon . | . . . Unidentified Prototypes . | . . . Parts Lost 9 | . 2 7 Power 3 | . 1 2 Propulsion 3 | . . 3 Utility . | . . . Weapon 3 | . 1 2 Highest Loss Streak 5 | . 2 5 To Critical Strikes . | . . . Average Slot Usage (%) 97 | . 96 98 Engine 13 | . 13 13 Treads 27 | . 28 27 Storage 14 | . 14 14 Protection 11 | . 10 14 Energy Gun 2 | . 3 . Energy Cannon 11 | . 10 14 Ballistic Gun 10 | . 10 13 Ballistic Cannon 3 | . 3 . Peak Build Rating 11 | 6 10 11 Average Rating 8 | 4 7 10 On Entrance 5 | . 6 9 Naked Turns . | . . . Heaviest Build 33 | 14 33 33 Greatest Support 40 | 40 40 40 Greatest Overweight (x) 2 | 2 . . Average Overweight (x) . | . . . Largest Inventory Capacity 15 | 8 15 15 Average Capacity 12 | 7 11 15 Most Carried 15 | 3 13 15 Average Carried 10 | 1 9 14 Final Capacity 15 | 8 15 15 Final Carried 14 | 3 13 14 Class Distribution -------------------- 100% | Mutant Dominant Class ---------------- Mutant | -10/Materials Mutant | -10/Subcaves Resources | -11 -10 -10 ----------- Run | Yrd Mat Sub Matter Collected 863 | 226 428 209 Remotely . | . . . Salvage Created 1049 | . 958 91 Parts 61 | . 55 6 Haulers Intercepted 2 | . 2 . Recyclers Shooed . | . . . Parts Field Recycled . | . . . Retrieved Matter . | . . . Parts Self-Destructed 4 | . . 4 Prevented . | . . . Kills | -11 -10 -10 ------- Run | Yrd Mat Sub Combat Hostiles Destroyed 25 | . 22 3 Guns 18 | . 16 2 Cannons 7 | . 6 1 Classes Destroyed 7 | . 6 1 Hauler 2 | . 2 . Mechanic 1 | . 1 . Operator 1 | . 1 . Watcher 3 | . 3 . Swarmer 6 | . 6 . Grunt 16 | . 16 . Subdweller 3 | . . 3 Best Kill Streak 5 | . 5 3 Combat Bots Only 5 | . 5 3 Max Kills in Single Turn 1 | . 1 1 Gunslinging . | . . . Exploded . | . . . Melee . | . . . Uniques/NPCs Destroyed . | . . . Combat | -11 -10 -10 -------- Run | Yrd Mat Sub Hostile Shots Fired 140 | . 110 30 Missed 38 | . 31 7 Damage Taken 1518 | . 747 771 Core 252 | . 126 126 Absorbed by Shields . | . . . Redirected to Shielding 41 | . 17 24 Core Remaining (%) 100 | 100 . . Volleys Fired 116 | . 90 26 Largest 2 | . 2 2 Hottest 95 | . 95 90 Shots Fired 223 | . 183 40 Gun 149 | . 129 20 Cannon 73 | . 53 20 Launcher 1 | . 1 . Special . | . . . Kinetic 110 | . 90 20 Thermal 112 | . 92 20 Explosive 1 | . 1 . Electromagnetic . | . . . Robot Hit Streak 26 | . 26 13 Robot Miss Streak 5 | . 5 1 Penetration Max . | . . . Secondary Targets . | . . . Shots Hit Robots 129 | . 104 25 Core Hits 49 | . 43 6 Critical Kills . | . . . Critical Parts Destroyed . | . . . Critical Strikes 4 | . 3 1 Burn 2 | . 2 . Destroy 1 | . . 1 Blast 1 | . 1 . Melee Attacks . | . . . Impact . | . . . Slashing . | . . . Piercing . | . . . Sneak Attacks . | . . . Combat Hostiles . | . . . Follow-up Attacks . | . . . Damage Inflicted 1969 | . 1497 472 Guns 1248 | . 1061 187 Cannons 721 | . 436 285 Explosions . | . . . Melee . | . . . Ramming . | . . . Kinetic 914 | . 727 187 Thermal 1055 | . 770 285 Explosive . | . . . Electromagnetic . | . . . Impact . | . . . Slashing . | . . . Piercing . | . . . Highest Corruption 5 | . 5 5 Average Corruption 4 | . 4 5 Corruption Purged . | . . . Corruption Blocked . | . . . Effects 51 | . 35 16 Message Errors 9 | . 8 1 Matter Fused 18 | . 10 8 Heat Flow Errors 4 | . 4 . Energy Discharges 4 | . 3 1 Parts Fused 2 | . 1 1 Data Loss (minor) 5 | . 4 1 Data Loss (major) 1 | . . 1 Misfires 6 | . 4 2 Alerts 1 | . 1 . Weapon Failures 1 | . . 1 Overload Shots . | . . . Overflow Damage 2 | . 2 . Projectiles 2 | . 2 . Explosions . | . . . Melee . | . . . Knockbacks 2 | . 2 . Impact . | . . . Kinetic 2 | . 2 . Secondary . | . . . Self-Inflicted Damage 25 | . 25 . Shots 1 | . 1 . Rammed . | . . . Targets Rammed . | . . . Kicked . | . . . Crushed . | . . . Highest Temperature 331 | . 331 244 Average Temperature 91 | . 89 155 Received Heat Transfer 544 | . 198 346 Siege Activations . | . . . Robots Corrupted . | . . . Combat Hostiles . | . . . Parts Fried . | . . . Impact Corruptions . | . . . Robots Melted . | . . . Combat Hostiles . | . . . Parts Melted 5 | . 3 2 Heat Transferred 2738 | . 2146 592 Parts Sabotaged . | . . . Parts Stolen . | . . . Parts Stripped . | . . . Power Chain Reactions . | . . . Alert | -11 -10 -10 ------- Run | Yrd Mat Sub Peak Influence 297 | . 297 . Initial . | . . . Average 201 | . 208 . Maximum Alert Level 1 | . 1 . Low Security (%) 35 | 100 33 . Level 1 64 | . 66 . Level 2 . | . . . Level 3 . | . . . Level 4 . | . . . Level 5 . | . . . High Security . | . . . Max Security . | . . . Squads Dispatched 5 | . 5 . Investigation 3 | . 3 . Extermination . | . . . Reinforcement 2 | . 2 . Assault . | . . . Garrison . | . . . Intercept . | . . . Searches Triggered . | . . . Construction Impeded . | . . . Haulers Reinforced . | . . . Active Scanning Responses . | . . . Cargo Convoy Interrupts . | . . . Stealth | -11 -10 -10 --------- Run | Yrd Mat Sub Distress Signals . | . . . Communications Jammed . | . . . Distress Signals . | . . . Times Spotted 41 | . 36 5 Peak Tracking Total 4 | . 4 2 Tactical Retreats 3 | . 3 . Traps | -11 -10 -10 ------- Run | Yrd Mat Sub Traps Triggered 4 | . 4 . Indirectly . | . . . Trap Hack Attempts . | . . . Triggered . | . . . Disarmed . | . . . Reprogrammed . | . . . Reused . | . . . Traps Extracted . | . . . Installed . | . . . Triggered . | . . . Machines | -11 -10 -10 ---------- Run | Yrd Mat Sub Machines Disabled 2 | . 2 . Max in Single Turn 1 | . 1 . Machines Repaired . | . . . Machines Dismantled . | . . . Machines Sabotaged . | . . . Overloaded Fab Kills . | . . . Hacking | -11 -10 -10 --------- Run | Yrd Mat Sub Machines Accessed 8 | . 8 . Terminals 6 | . 6 . Fabricators . | . . . Repair Stations 1 | . 1 . Recycling Units 1 | . 1 . Scanalyzers . | . . . Garrison Access . | . . . Total Hacks 20 | . 20 . Successful 15 | . 15 . Failed 5 | . 5 . Catastrophic . | . . . Database Lockouts . | . . . Manual 13 | . 13 . Terminals 15 | . 15 . Fabricators . | . . . Repair Stations 4 | . 4 . Recycling Units 1 | . 1 . Scanalyzers . | . . . Garrison Access . | . . . Terminal Hacks 3 | . 3 . Prototype ID Bank 1 | . 1 . Locate Traps 1 | . 1 . Hauler Manifests 1 | . 1 . Fabricator Hacks . | . . . Repair Station Hacks 1 | . 1 . Scan Component 1 | . 1 . Recycling Unit Hacks 1 | . 1 . Retrieve Components 1 | . 1 . Scanalyzer . | . . . Garrison Access Hacks . | . . . Unauthorized Hacks 10 | . 10 . Terminals 10 | . 10 . Assimilate 1 | . 1 . Botnet 2 | . 2 . Operators 1 | . 1 . Skim 6 | . 6 . Fabricators . | . . . Repair Stations . | . . . Recycling Units . | . . . Scanalyzers . | . . . Garrison Access . | . . . Data Cores Recovered . | . . . Used . | . . . Hacking Detections 4 | . 4 . Full Trace Events 2 | . 2 . Feedback Events . | . . . Feedback Blocked . | . . . Robot Schematics Acquired . | . . . Robots Built . | . . . Authchips . | . . . Time . | . . . Total Robot Build Rating . | . . . Part Schematics Acquired . | . . . Parts Built . | . . . Authchips . | . . . Time . | . . . Total Part Build Rating . | . . . Parts Repaired . | . . . Time . | . . . Parts Recycled . | . . . Recycled Matter . | . . . Retrieved Matter . | . . . Retrieved Components 10 | . 10 . Parts Scanalyzed . | . . . Part Schematics Acquired . | . . . Parts Damaged . | . . . Bothacking | -11 -10 -10 ------------ Run | Yrd Mat Sub Used RIF Installer . | . . . Robots Hacked . | . . . Non-combat . | . . . Combat . | . . . Robot Hacks Applied . | . . . Relay Couplers Released . | . . . Fabnet Peak Effective % . | . . . Robots Rewired . | . . . Allies Hacked . | . . . Hacks Repelled . | . . . Allies | -11 -10 -10 -------- Run | Yrd Mat Sub Total Allies . | . . . Largest Group . | . . . Highest-Rated Group . | . . . Highest-Rated Ally . | . . . Total Orders . | . . . Ally Attacks . | . . . Total Damage . | . . . Kills . | . . . Allies Corrupted . | . . . Allies Melted . | . . . Intel | -11 -10 -10 ------- Run | Yrd Mat Sub Robot Analysis Total . | . . . Derelict Logs Recovered . | . . . Drone Launches . | . . . Drone Recoveries . | . . . Exploration | -11 -10 -10 ------------- Run | Yrd Mat Sub Turns Passed 2697 | 71 2041 585 Spaces Moved 1198 | 39 851 308 Core 4 | 4 . . Treads 1194 | 35 851 308 Legs . | . . . Wheels . | . . . Hover . | . . . Flight . | . . . Fastest Speed 50 | 50 160 160 Average Speed 159 | 155 160 160 Slowest Speed 160 | 160 160 160 Overloaded Moves . | . . . Propulsion Burnouts . | . . . Robots Hopped . | . . . Cave-ins Triggered . | . . . Exploration Rate (%) 42 | 4 99 23 Regions Visited 2 Branch Regions 1 Pre-discovered Areas 3 | . 3 . Known Exits Taken 1 | . 1 . Unknown Exits Taken 1 | 1 . . Scrap Searched . | . . . Spaces Dug . | . . . Terrain Destroyed 7 | . 7 . Melee . | . . . Projectile . | . . . AOE 7 | . 7 . Terrain Rammed . | . . . Walls Destroyed . | . . . Machines Disabled . | . . . Actions | -11 -10 -10 --------- Run | Yrd Mat Sub Total 1765 | 47 1357 361 Wait 393 | . 376 17 Move 1196 | 38 850 308 Hop . | . . . Pick Up 22 | 3 16 3 Fast Attach 12 | 6 4 2 Attach 4 | . 2 2 Detach 2 | . 1 1 Swap 7 | . 6 1 Drop 13 | . 12 1 Fire 116 | . 90 26 Melee . | . . . Ram . | . . . Kick . | . . . Crush . | . . . Escape Stasis . | . . . Rewire . | . . . Trap . | . . . Miscellaneous . | . . . Route ------- -11/Scrapyard -10/Materials (discovered 5 exits: [*Mat x3] / [*Min] / *Sub) -10/Subcaves History --------- Turn | Location | Event 10 | -11/Scrapyard | Discovered new exit (range 16) 72 | -11/Scrapyard | Entered Materials 301 | -10/Materials | Build established: Mutant 753 | -10/Materials | Discovered new exit (range 5) 869 | -10/Materials | Discovered new exit (range 9) 1397 | -10/Materials | Discovered new exit (range 13) 1646 | -10/Materials | Discovered new exit (range 5) 1696 | -10/Materials | Core integrity fell below 50% 1733 | -10/Materials | Learned location of Subcaves (-10) 1791 | -10/Materials | Learned 2 Storage zone layouts 1914 | -10/Materials | Learned location of Storage (-8) 1942 | -10/Materials | Identified exit to Subcaves 1942 | -10/Materials | Learned location of 2 exits from Materials 1961 | -10/Materials | Learned location of Recycling (-8) 2113 | -10/Materials | Entered Subcaves 2135 | -10/Subcaves | Shifting Twisted Machinery released Sub. Shrapnel Launcher 2138 | -10/Subcaves | Shifting Twisted Machinery released Sub. Machine Gun 2682 | -10/Subcaves | Core integrity fell below 20% 2698 | -10/Subcaves | Ambushed by Subdweller buried in earth 2698 | -10/Subcaves | Destroyed by 9G-TN9(R) with Subdweller Laser Last Messages --------------- Machine Gun. System corrupted: Sub. Machine Gun misfires. System corrupted: Matter fused (-10). System corrupted: Matter fused (-9). System corrupted: Matter fused (-7). Acquired 7 matter. Acquired 13 matter. Acquired 5 matter. System corrupted: Matter fused (-6). Acquired 15 matter. Acquired 11 matter. Acquired 5 matter. Lgt. Treads destroyed. System corrupted: Beam Cannon failed to cycle. Sub. Machine Gun shoots sparks and powers down. System corrupted: Broken Sub. Machine Gun fused. Lgt. Treads destroyed. Beam Cannon destroyed. Sub. Power Source destroyed. Broken Sub. Machine Gun destroyed. Map ----- +----------------------------------------------------+ | ### ####?## #?????????### ????? | | ###?# #?### ##????????# ????? | | ###### ### ## #?????##?# ?????? | | ## "#?# #??### ## ??????? | | """#?# ##### ##?? ???????? | | " ""#?#"" # ###### #???# ????????? | | ##### ## ### #??## ??????????? | | "##### ### #?# #?## % ???????????? | | " ### #?###?# #### #????????? #?? | | " "## ##????## ## #??????? #??? | | """" """ #?????## ## #??#### % #??? | | """ "" #??????# #### ### #??? | | ###" "" #?????## # | | ??# "" #?????# ## | | ### "" ##????# #??????##??? | | # ## ##???##### ### #??????????? | | ## #?#########?##### #??????????? | | ##### "" ######## #???????# ##????????#? | | ????# ##?????#;;;;; #??????## ######## #? | | ????# & ##??????#; ;;###????# #?? | | ????# ##& ##??????#;; # ###??## #??? | | ????## #& !##?????# R #???## ## #??? | | ?????### & #?????# ##???## #?????? | | ???????# #????# ####?# ## #?????? | | ???????#"## ##????## ### ####?????? | | ???????###?###?????# @ # ### #???????? | | ???????????????????## # #?## #???????? | | ???????????????????# #?## #???????? | | ??????????????????#$ ### ##???????? | | ??????????????????## & # #????????? | | ??????????????????#$&<## #####????? | | ??????????????????##$## #R## #????? | | ???????????????????### ## ## ## #???? | | ?????????????????????# ### #### #??? | | ?????????????????????# ## ##??? #? | | ?????????????????????## ### ##????# ## ##? | | ??????????????????????# ##?# #????? #? %! #?? | | ??????????????????????# ##??? ????? ??] #? | | ??????????????????????##???? ?????? ??? | | ???????????????????????????## ?????? ??? | | ????????????????????????????### ?????? #????# | | ??????????????????????????????##?????? #?????? | | ?????????????????????????????????????? ## ??????? | | ??????????????????????????????????????##?? ??????? | | ?????????????????????????????????????????? ??????? | | ?????????????????????????????????????????????????? | | ?????????????????????????????????????????????????? | | ?????????????????????????????????????????????????? | | ?????????????????????????????????????????????????? | | ?????????????????????????????????????????????????? | +----------------------------------------------------+ Best States ------------- Heat Dissipation 39 Energy Generation 5 Energy Capacity 250 Matter Stores 300 Matter Capacity 300 Sight Range 16 Terrain Scan Density 10 Core Shielding 20 Evasion (%) 40 Recoil Reduction 2 Item Schematics ----------------- None Robot Schematics ------------------ None Fabricated ------------ Nothing Alien Tech Used ----------------- None Achievements -------------- None Challenges ------------ None Game ------ Seed CombatWeightMantle Manual? 0 Play Time 00:15:19 Cumulative 550.3 hours Start 2024.08.07 @ 20:55:16 End 2024.08.07 @ 21:08:07 Sessions 1 Manual Loads 0 Difficulty Rogue Special Mode None Game No. 287 Rogue 287 Adventurer 0 Explorer 0 Win Type - Total 36 Types 22/2/4/3/1/1/1/1/1 Lore% 84 Gallery% 96 Achievement% 98 Wizard Run 0 Options --------- Layout 1 ASCII 0 Keyboard 0 Movement Numpad Keybinds 0 Fullscreen 1 Font 24/Smallcaps Map View 50x35 Zoom Use 0% Tactical HUD 1 Map Filters NONE Filters NONE Steam 1 RUN: 2e8fd0da-03d8-4826-ba04-cd3ed1ea0bab